fUST/lending_fUST_20260313
["ID","MTS","AMOUNT","RATE_DAILY","PERIOD"]
[408268003,1773331639128,-2127.62358428,7.301e-05,2]
[408268004,1773331748146,-1923.71263368,7.228e-05,2]
[408268037,1773331831680,-433.45811007,7.228e-05,2]
[408268040,1773331831768,-712.57274502,7.228e-05,2]
[408268041,1773331831780,-522.0,7.228e-05,2]
[408268043,1773331831790,-150.0,7.375e-05,2]
[408268044,1773331831799,-1530.75617766,7.509e-05,2]
[408268046,1773331831809,-565.655048,7.612e-05,2]
[408268048,1773331831819,-300.0,7.708e-05,2]
[408268050,1773331831829,-300.0,7.708e-05,2]
[408268051,1773331831839,-300.0,7.708e-05,2]
[408268052,1773331831848,-615.18561598,7.709e-05,2]
[408268081,1773331838157,-3121.2401168,7.709e-05,2]
[408268082,1773331838167,-500.0,7.853e-05,2]
[408268083,1773331838176,-128.79798273,7.853e-05,2]
[408268084,1773331838187,-371.20201727,7.853e-05,2]
[408268085,1773331838197,-500.0,7.853e-05,2]
[408268086,1773331838206,-500.0,7.853e-05,2]
[408268087,1773331838216,-500.0,7.853e-05,2]
[408268088,1773331838225,-500.0,7.853e-05,2]
[408268089,1773331838235,-500.0,7.853e-05,2]
[408268090,1773331838244,-500.0,7.853e-05,2]
[408268091,1773331838254,-500.0,7.853e-05,2]
[408268092,1773331838264,-500.0,7.853e-05,2]
[408268093,1773331838274,-500.0,7.853e-05,2]
[408268094,1773331838283,-47.80223535,7.853e-05,2]
[408268095,1773331838295,-452.19776465,7.853e-05,2]
[408268096,1773331838304,-500.0,7.853e-05,2]
[408268097,1773331838313,-500.0,7.853e-05,2]
[408268098,1773331838323,-500.0,7.853e-05,2]
[408268099,1773331838332,-500.0,7.873e-05,2]
[408268100,1773331838342,-500.0,7.873e-05,2]
[408268101,1773331838351,-500.0,7.873e-05,2]
[408268102,1773331838359,-500.0,7.873e-05,2]
[408268103,1773331838368,-234.27268849,7.873e-05,2]
[408268104,1773331838380,-265.72731151,7.873e-05,2]
[408268105,1773331838389,-500.0,7.873e-05,2]
[408268106,1773331838398,-438.54245058,7.873e-05,2]
[408268107,1773331838407,-500.0,7.873e-05,2]
[408268108,1773331838416,-500.0,7.873e-05,2]
[408268109,1773331838425,-500.0,7.873e-05,2]
[408268110,1773331838434,-500.0,7.873e-05,2]
[408268111,1773331838444,-562.29970796,7.873e-05,2]
[408268112,1773331838453,-1895.57147071,7.874e-05,2]
[408268155,1773331840182,-11804.08078894,7.874e-05,2]
[408268161,1773331840237,-3366.1,7.874e-05,2]
[408268163,1773331840248,-389.85620329,7.874e-05,2]
[408268165,1773331840260,-710.16856,7.874e-05,2]
[408268168,1773331840271,-1125.34589103,7.874e-05,2]
[408268170,1773331840282,-699.63,7.874e-05,2]
[408268452,1773331842869,-989.01004704,7.874e-05,2]
[408268454,1773331842880,-7564.04153964,7.874e-05,2]
[408268456,1773331842891,-34048.04114081,7.874e-05,2]
[408268458,1773331842902,-2000.0,7.874e-05,2]
[408268556,1773331846142,-566.15231369,7.795e-05,2]
[408268557,1773331846154,-4433.84768631,7.795e-05,2]
[408268558,1773331846163,-9736.04473253,7.874e-05,2]
[408268559,1773331846174,-17105.85042957,7.874e-05,2]
[408268562,1773332403623,176.41,2e-05,2]
[408268567,1773332644041,161.20160818,2.001e-05,2]
[408268573,1773332823426,5000.0,2.001e-05,2]
[408268575,1773332950141,-150.0,2.053e-05,2]
[408268576,1773332950165,-176.41,2.1e-05,2]
[408268577,1773332950186,-176.41,2.2e-05,2]
[408268578,1773332950206,-251.46100516,2.416e-05,2]
[408268579,1773332950228,-177.0,4.053e-05,2]
[408268580,1773332950249,-204.0,6.053e-05,2]
[408268581,1773332950268,-1592.7625988,6.765e-05,2]
[408268582,1773332950290,-1200.0,7.086e-05,2]
[408268583,1773332950311,-520.61829072,7.087e-05,2]
[408268584,1773332950330,-300.0,7.632e-05,2]
[408268585,1773332950351,-300.0,7.632e-05,2]
[408268586,1773332950371,-500.0,7.633e-05,2]
[408268587,1773332950391,-500.0,7.633e-05,2]
[408268588,1773332950411,-500.05039856,7.633e-05,2]
[408268589,1773332950432,-500.0,7.633e-05,2]
[408268590,1773332950452,-541.15706046,7.633e-05,2]
[408268591,1773332950473,-500.0,7.633e-05,2]
[408268592,1773332950493,-529.10406905,7.633e-05,2]
[408268593,1773332950513,-260.14021253,7.633e-05,2]
[408268594,1773332950534,-500.0,7.652e-05,2]
[408268595,1773332950554,-215.91646739,7.652e-05,2]
[408268596,1773332950578,-500.0,7.652e-05,2]
[408268597,1773332950598,-500.0,7.652e-05,2]
[408268598,1773332950620,-500.0,7.652e-05,2]
[408268599,1773332950642,-224.26539814,7.652e-05,2]
[408268600,1773332950664,-500.0,7.652e-05,2]
[408268601,1773332950684,-500.0,7.652e-05,2]
[408268602,1773332950706,-348.71605689,7.652e-05,2]
[408268603,1773332950728,-500.0,7.652e-05,2]
[408268604,1773332950754,-500.0,7.652e-05,2]
[408268605,1773332950778,-500.0,7.652e-05,2]
[408268606,1773332950800,-476.64376631,7.652e-05,2]
[408268607,1773332956270,-23.35623369,7.652e-05,2]
[408268608,1773332956292,-500.0,7.652e-05,2]
[408268609,1773332956313,-500.0,7.652e-05,2]
[408268610,1773332956336,-500.0,7.652e-05,2]
[408268611,1773332956358,-500.0,7.652e-05,2]
[408268612,1773332956380,-500.0,7.652e-05,2]
[408268613,1773332956403,-500.0,7.652e-05,2]
[408268614,1773332956426,-500.0,7.652e-05,2]
[408268615,1773332956447,-500.0,7.652e-05,2]
[408268616,1773332956470,-500.0,7.652e-05,2]
[408268617,1773332956490,-500.0,7.652e-05,2]
[408268618,1773332956513,-500.0,7.652e-05,2]
[408268619,1773332956535,-500.0,7.652e-05,2]
[408268620,1773332956558,-500.0,7.652e-05,2]
[408268621,1773332956579,-500.0,7.652e-05,2]
[408268622,1773332956601,-532.09154877,7.652e-05,2]
[408268623,1773332956622,-500.0,7.652e-05,2]
[408268624,1773332956644,-500.0,7.652e-05,2]
[408268625,1773332956663,-300.0,7.652e-05,2]
[408268626,1773332956684,-300.0,7.652e-05,2]
[408268627,1773332956707,-33303.502071,7.653e-05,2]
[408268628,1773332969089,-7736.00967735,7.652e-05,2]
[408268629,1773332969116,-4269.55476244,7.653e-05,2]
[408268856,1773333039006,-300.0,7.652e-05,2]
[408268857,1773333039016,-300.0,7.652e-05,2]
[408268858,1773333039026,-528.0,7.652e-05,2]
[408268859,1773333039035,-1200.0,7.652e-05,2]
[408268860,1773333039044,-1811.67013678,7.653e-05,2]
[408268861,1773333039056,-235949.28601396,7.653e-05,2]
[408268862,1773333039069,-500.0,7.753e-05,2]
[408268863,1773333039079,-500.0,7.753e-05,2]
[408268864,1773333039088,-500.22727882,7.753e-05,2]
[408268865,1773333039099,-582.67904644,7.753e-05,2]
[408268866,1773333039109,-500.0,7.753e-05,2]
[408268867,1773333039118,-500.0,7.753e-05,2]
[408268868,1773333039128,-500.0,7.753e-05,2]
[408268869,1773333039139,-500.0,7.753e-05,2]
[408268870,1773333039148,-9053.83487634,7.8e-05,2]
[408268871,1773333039157,-500.36787709,7.853e-05,2]
[408268872,1773333039167,-1033.414419,7.862e-05,2]
[408268873,1773333039177,-247.0,7.9e-05,2]
[408268874,1773333039186,-565.655048,7.933e-05,2]
[408268875,1773333039195,-500.0,7.953e-05,2]
[408268876,1773333039204,-500.0,7.953e-05,2]
[408268877,1773333039214,-500.0,7.953e-05,2]
[408268878,1773333039223,-238.79386693,8.026e-05,2]
[408268879,1773333039232,-231.0,8.053e-05,2]
[408268880,1773333039241,-600.0,8.111e-05,2]
[408268881,1773333039250,-372.74230166,8.185e-05,2]
[408268882,1773333039259,-565.655048,8.253e-05,2]
[408268883,1773333039269,-500.0,8.291e-05,2]
[408268884,1773333039279,-500.0,8.301e-05,2]
[408268885,1773333039288,-420.0,8.417e-05,2]
[408268886,1773333039298,-291.0,8.417e-05,2]
[408268887,1773333039307,-500.0,8.501e-05,2]
[408268888,1773333039317,-1000.0,8.501e-05,2]
[408268889,1773333039326,-565.655048,8.574e-05,2]
[408268890,1773333039335,-500.0,8.611e-05,2]
[408268891,1773333039345,-445.202766,8.611e-05,2]
[408268892,1773333039354,-162.380719,8.611e-05,2]
[408268893,1773333039364,-500.0,8.611e-05,2]
[408268894,1773333039373,-500.0,8.611e-05,2]
[408268895,1773333039383,-500.0,8.611e-05,2]
[408268896,1773333039392,-1957.856,8.611e-05,2]
[408268897,1773333039401,-500.0,8.611e-05,2]
[408268898,1773333039411,-500.0,8.611e-05,2]
[408268899,1773333039420,-126.30227281,8.611e-05,2]
[408268900,1773333039436,-373.69772719,8.611e-05,2]
[408268901,1773333039446,-500.0,8.611e-05,2]
[408268902,1773333039455,-500.0,8.611e-05,2]
[408268903,1773333039464,-500.0,8.611e-05,2]
[408268904,1773333039473,-500.0,8.611e-05,2]
[408268905,1773333039485,-500.0,8.611e-05,2]
[408268906,1773333039494,-500.0,8.611e-05,2]
[408268907,1773333039504,-500.0,8.611e-05,2]
[408268908,1773333039514,-500.0,8.611e-05,2]
[408268909,1773333039523,-500.0,8.611e-05,2]
[408268910,1773333039532,-500.0,8.611e-05,2]
[408268911,1773333039542,-250.0,8.611e-05,2]
[408268912,1773333039551,-250.0,8.611e-05,2]
[408268913,1773333039561,-5376.845,8.611e-05,2]
[408268914,1773333039571,-250.0,8.611e-05,2]
[408268915,1773333039580,-537.6845,8.611e-05,2]
[408268916,1773333039589,-250.0,8.611e-05,2]
[408268917,1773333039599,-2150.738,8.611e-05,2]
[408268918,1773333039610,-250.0,8.611e-05,2]
[408268919,1773333039619,-250.0,8.611e-05,2]
[408268920,1773333039629,-250.0,8.611e-05,2]
[408268921,1773333039648,-250.0,8.611e-05,2]
[408268922,1773333039659,-250.0,8.611e-05,2]
[408268923,1773333039669,-250.0,8.611e-05,2]
[408268924,1773333039679,-250.0,8.611e-05,2]
[408268925,1773333039690,-250.0,8.611e-05,2]
[408268926,1773333039700,-250.0,8.611e-05,2]
[408268927,1773333039709,-166.49861313,8.611e-05,2]
[408268928,1773333039719,-156.587,8.611e-05,2]
[408268929,1773333039729,-348.76079588,8.616e-05,2]
[408268930,1773333039739,-4271.13658022,8.666e-05,2]
[408268931,1773333039749,-520.22975727,8.839e-05,2]
[408268932,1773333039759,-186.656677,8.875e-05,2]
[408268933,1773333039769,-222.97555114,8.892e-05,2]
[408268934,1773333039779,-565.655048,8.894e-05,2]
[408268935,1773333039789,-166.0,8.906e-05,2]
[408268936,1773333039799,-155.0,8.906e-05,2]
[408268937,1773333039809,-690.0,8.906e-05,2]
[408268938,1773333039819,-351.0,8.906e-05,2]
[408268939,1773333039828,-690.0,8.906e-05,2]
[408268940,1773333039838,-351.0,8.906e-05,2]
[408268941,1773333039848,-690.0,8.906e-05,2]
[408268942,1773333039858,-339.0,8.906e-05,2]
[408268943,1773333039867,-169.5647597,8.906e-05,2]
[408268944,1773333039877,-690.0,8.906e-05,2]
[408268945,1773333039887,-339.0,8.906e-05,2]
[408268946,1773333039897,-339.0,8.906e-05,2]
[408268947,1773333039907,-690.0,8.906e-05,2]
[408268948,1773333039917,-351.0,8.906e-05,2]
[408268949,1773333039926,-339.0,8.906e-05,2]
[408268950,1773333039936,-690.0,8.906e-05,2]
[408268951,1773333039946,-351.0,8.906e-05,2]
[408268952,1773333039955,-339.0,8.906e-05,2]
[408268953,1773333039965,-690.0,8.906e-05,2]
[408268954,1773333039975,-690.0,8.906e-05,2]
[408268955,1773333039985,-339.0,8.906e-05,2]
[408268956,1773333039995,-351.0,8.906e-05,2]
[408268957,1773333040004,-690.0,8.906e-05,2]
[408268958,1773333040015,-351.0,8.906e-05,2]
[408268959,1773333040026,-339.0,8.906e-05,2]
[408268960,1773333040035,-690.0,8.906e-05,2]
[408268961,1773333040046,-339.0,8.906e-05,2]
[408268962,1773333040056,-351.0,8.906e-05,2]
[408268963,1773333040069,-690.0,8.906e-05,2]
[408268964,1773333040080,-339.0,8.906e-05,2]
[408268965,1773333040090,-351.0,8.906e-05,2]
[408268966,1773333040100,-339.0,8.906e-05,2]
[408268967,1773333040110,-204.37378939,8.906e-05,2]
[408268968,1773333040120,-351.0,8.906e-05,2]
[408268969,1773333040130,-401.4557906,8.906e-05,2]
[408268970,1773333040141,-351.0,8.906e-05,2]
[408268971,1773333040151,-151.0,8.906e-05,2]
[408268972,1773333040161,-151.0,8.906e-05,2]
[408268973,1773333040171,-720.0,8.922e-05,2]
[408268974,1773333040181,-401.35599205,8.971e-05,2]
[408268975,1773333040192,-505.62,9e-05,2]
[408268976,1773333040202,-445.202766,9.159e-05,2]
[408268977,1773333040212,-537.6845,9.159e-05,2]
[408268978,1773333040221,-2230.315306,9.159e-05,2]
[408268979,1773333040230,-565.655048,9.215e-05,2]
[408268980,1773333040240,-639.0,9.237e-05,2]
[408268981,1773333040249,-1392.0,9.237e-05,2]
[408268982,1773333040259,-436.0,9.237e-05,2]
[408268983,1773333040269,-733.0,9.237e-05,2]
[408268985,1773333040279,-505.0,9.258e-05,2]
[408268986,1773333040290,-230.083,9.5e-05,2]
[408268988,1773333040299,-166.0,9.5e-05,2]
[408268990,1773333040309,-351.0,9.5e-05,2]
[408268992,1773333040319,-351.0,9.5e-05,2]
[408268994,1773333040329,-351.0,9.5e-05,2]
[408268996,1773333040338,-351.0,9.5e-05,2]
[408268998,1773333040347,-351.0,9.5e-05,2]
[408269000,1773333040357,-351.0,9.5e-05,2]
[408269002,1773333040366,-351.0,9.5e-05,2]
[408269004,1773333040376,-351.0,9.5e-05,2]
[408269006,1773333040386,-1859.79582814,9.604e-05,2]
[408269008,1773333040395,-6020.26375113,9.604e-05,2]
[408269010,1773333040413,-1828.83624887,9.604e-05,2]
[408269013,1773333040423,-1933.96935503,9.707e-05,2]
[408269036,1773333040654,-378.86761729,9.707e-05,2]
[408269037,1773333040664,-500.0,9.783e-05,2]
[408269039,1773333040674,-5970.23238271,9.801e-05,2]
[408269275,1773333043113,-3623.51827834,9.801e-05,2]
[408269277,1773333043125,-1000.0,9.801e-05,2]
[408269781,1773333368153,1000.0,0.000102,120]
[408269809,1773333938352,-2000.0,7.099e-05,2]
[408269810,1773333939493,-2000.0,7.099e-05,2]
[408269811,1773333940427,-1000.0,7.099e-05,2]
[408269812,1773333940454,-150.0,7.207e-05,2]
[408269813,1773333940482,-633.62183573,7.228e-05,2]
[408269814,1773333940505,-216.37816427,7.243e-05,2]
[408269815,1773333941375,-305.62183573,7.243e-05,2]
[408269816,1773333941414,-1191.56338841,7.328e-05,2]
[408269817,1773333941452,-502.81477586,7.427e-05,2]
[408269818,1773333942380,-697.18522414,7.427e-05,2]
[408269819,1773333942414,-1302.81477586,7.428e-05,2]
[408269820,1773333944005,-2000.0,7.354e-05,2]
[408269821,1773333945173,-1153.71263368,7.354e-05,2]
[408269822,1773333945199,-446.69016523,7.428e-05,2]
[408269823,1773333945226,-300.0,7.531e-05,2]
[408269824,1773333945635,-99.59720109,7.533e-05,2]
[408269825,1773333959352,-2164.65562877,7.382e-05,2]
[408269826,1773333959374,-1899.25916568,7.457e-05,2]
[408269827,1773334002160,-1000.0,7.382e-05,2]
[408269828,1773334012116,-1530.74292586,7.382e-05,2]
[408269829,1773334012136,-3100.74083432,7.457e-05,2]
[408269830,1773334012157,-300.0,7.532e-05,2]
[408269831,1773334012176,-400.40279891,7.533e-05,2]
[408269832,1773334012195,-500.0,7.533e-05,2]
[408269833,1773334012215,-403.97180996,7.533e-05,2]
[408269834,1773334012235,-500.0,7.533e-05,2]
[408269835,1773334012270,-413.69682574,7.533e-05,2]
[408269836,1773334049086,-779.85826261,7.457e-05,2]
[408269839,1773334154111,-1445.52228616,7.457e-05,2]
[408269840,1773334154135,-150.0,7.495e-05,2]
[408269841,1773334154163,-300.0,7.532e-05,2]
[408269842,1773334154185,-382.0489563,7.533e-05,2]
[408269865,1773334232022,-300.0,7.532e-05,2]
[408269867,1773334232032,-526.0,7.532e-05,2]
[408269869,1773334232042,-66.31197615,7.533e-05,2]
[408269870,1773334232051,-500.0,7.533e-05,2]
[408269871,1773334232061,-500.0,7.533e-05,2]
[408269872,1773334232070,-500.0,7.533e-05,2]
[408269873,1773334232080,-500.0,7.533e-05,2]
[408269874,1773334232089,-231.65196977,7.576e-05,2]
[408269875,1773334232098,-500.0,7.623e-05,2]
[408269876,1773334232108,-500.0,7.623e-05,2]
[408269877,1773334232117,-502.46610768,7.623e-05,2]
[408269878,1773334232127,-500.0,7.623e-05,2]
[408269880,1773334232136,-500.0,7.623e-05,2]
[408269882,1773334232145,-500.0,7.623e-05,2]
[408269884,1773334232155,-500.0,7.623e-05,2]
[408269886,1773334232164,-500.0,7.623e-05,2]
[408269888,1773334232172,-500.0,7.623e-05,2]
[408269890,1773334232182,-500.0,7.623e-05,2]
[408269891,1773334232191,-500.0,7.623e-05,2]
[408269892,1773334232201,-500.0,7.623e-05,2]
[408269893,1773334232210,-500.0,7.623e-05,2]
[408269894,1773334232220,-500.0,7.623e-05,2]
[408269895,1773334232229,-7736.00967735,7.623e-05,2]
[408269896,1773334232238,-500.0,7.644e-05,2]
[408269897,1773334232248,-500.0,7.644e-05,2]
[408269898,1773334232257,-358.25171091,7.644e-05,2]
[408269900,1773334232266,-254.26168573,7.644e-05,2]
[408269901,1773334232276,-500.0,7.644e-05,2]
[408269903,1773334232286,-243.70655409,7.644e-05,2]
[408269905,1773334232295,-2048.35465063,7.645e-05,2]
[408269908,1773334232307,-478.82850861,7.645e-05,2]
[408269956,1773334238153,-38991.32695974,7.645e-05,2]
[408269957,1773334238168,-242679.18726606,7.645e-05,2]
[408269958,1773334238178,-295.06900781,7.677e-05,2]
[408269959,1773334238188,-500.0,7.745e-05,2]
[408269960,1773334238199,-300.0,7.804e-05,2]
[408269961,1773334238209,-300.0,7.804e-05,2]
[408269962,1773334238219,-300.0,7.804e-05,2]
[408269963,1773334238229,-300.0,7.804e-05,2]
[408269964,1773334238241,-300.0,7.804e-05,2]
[408269965,1773334238251,-300.0,7.804e-05,2]
[408269966,1773334238261,-300.0,7.804e-05,2]
[408269967,1773334238271,-300.0,7.804e-05,2]
[408269968,1773334238282,-300.0,7.804e-05,2]
[408269969,1773334238292,-300.0,7.804e-05,2]
[408269970,1773334238301,-300.0,7.804e-05,2]
[408269971,1773334238311,-300.0,7.804e-05,2]
[408269972,1773334238321,-300.0,7.804e-05,2]
[408269973,1773334238331,-300.0,7.804e-05,2]
[408269974,1773334238341,-300.0,7.804e-05,2]
[408269975,1773334238350,-500.0,8.06e-05,2]
[408269976,1773334238360,-500.0,8.081e-05,2]
[408269977,1773334238370,-500.0,8.081e-05,2]
[408269978,1773334238380,-641.6399779,8.081e-05,2]
[408269979,1773334238390,-1000.74014982,8.081e-05,2]
[408269980,1773334238400,-1000.0,8.081e-05,2]
[408269981,1773334238413,-1143.663702,8.09e-05,2]
[408269982,1773334238422,-500.0,8.171e-05,2]
[408269983,1773334238432,-1000.0,8.171e-05,2]
[408269984,1773334238442,-500.0,8.171e-05,2]
[408269985,1773334238462,-290.59434691,8.171e-05,2]
[408269986,1773334238472,-1000.0,8.171e-05,2]
[408269987,1773334238483,-500.0,8.171e-05,2]
[408269988,1773334238493,-1000.69429169,8.171e-05,2]
[408269989,1773334238502,-1000.0,8.171e-05,2]
[408269990,1773334238511,-238.74190236,8.219e-05,2]
[408269991,1773334238522,-500.0,8.256e-05,2]
[408269992,1773334238531,-500.0,8.256e-05,2]
[408269993,1773334238541,-305.0,8.285e-05,2]
[408269994,1773334238551,-2270.98162188,8.41e-05,2]
[408269995,1773334238562,-1143.663702,8.43e-05,2]
[408269996,1773334238573,-200.71400099,8.487e-05,2]
[408269997,1773334238582,-500.0,8.718e-05,2]
[408269998,1773334238592,-323.09457355,8.718e-05,2]
[408269999,1773334238605,-1500.0,8.718e-05,2]
[408270000,1773334238615,-1143.663702,8.771e-05,2]
[408270001,1773334238625,-500.0,8.804e-05,2]
[408270002,1773334238635,-500.0,8.804e-05,2]
[408270003,1773334238645,-713.52176365,8.906e-05,2]
[408270004,1773334238656,-279.75855897,8.906e-05,2]
[408270005,1773334238665,-503.56540615,8.906e-05,2]
[408270006,1773334238675,-895.22738872,8.906e-05,2]
[408270007,1773334238685,-1398.79279487,8.906e-05,2]
[408270008,1773334238695,-465.28639464,8.906e-05,2]
[408270009,1773334239081,-837.51551036,8.906e-05,2]
[408270010,1773334239108,-1488.91646286,8.906e-05,2]
[408270011,1773334239119,-2014.26162461,8.909e-05,2]
[408270012,1773334239128,-9809.260453,9e-05,2]
[408270013,1773334239138,-5000.0,9e-05,2]
[408270014,1773334239148,-5000.0,9e-05,2]
[408270015,1773334239159,-5000.0,9e-05,2]
[408270016,1773334239168,-5000.0,9e-05,2]
[408270017,1773334239177,-1143.663702,9.111e-05,2]
[408270018,1773334239189,-188.06212735,9.136e-05,2]
[408270019,1773334239199,-2326.43197322,9.18e-05,2]
[408270020,1773334239208,-500.0,9.194e-05,2]
[408270021,1773334239218,-162.380719,9.194e-05,2]
[408270022,1773334239227,-500.0,9.194e-05,2]
[408270023,1773334239237,-500.0,9.194e-05,2]
[408270024,1773334239248,-500.0,9.194e-05,2]
[408270025,1773334239259,-1510.50526263,9.194e-05,2]
[408270026,1773334239268,-500.0,9.194e-05,2]
[408270027,1773334239279,-500.0,9.194e-05,2]
[408270028,1773334239289,-500.0,9.194e-05,2]
[408270029,1773334239299,-500.0,9.194e-05,2]
[408270030,1773334239309,-500.0,9.194e-05,2]
[408270031,1773334239319,-500.0,9.194e-05,2]
[408270032,1773334239328,-500.0,9.194e-05,2]
[408270033,1773334239338,-500.0,9.194e-05,2]
[408270034,1773334239348,-500.0,9.194e-05,2]
[408270035,1773334239358,-500.0,9.194e-05,2]
[408270036,1773334239369,-500.0,9.194e-05,2]
[408270037,1773334239380,-500.0,9.194e-05,2]
[408270038,1773334239389,-500.0,9.194e-05,2]
[408270039,1773334239399,-2150.738,9.194e-05,2]
[408270040,1773334239412,-500.0,9.194e-05,2]
[408270041,1773334239422,-4359.07253262,9.194e-05,2]
[408270042,1773334239432,-2191.0,9.207e-05,2]
[408270043,1773334239442,-1393.0,9.207e-05,2]
[408270044,1773334239454,-639.0,9.207e-05,2]
[408270045,1773334239463,-733.0,9.207e-05,2]
[408270046,1773334239473,-436.0,9.207e-05,2]
[408270047,1773334239484,-501.9022056,9.266e-05,2]
[408270048,1773334239495,-2741.63387795,9.362e-05,2]
[408270049,1773334239505,-35786.4917272,9.437e-05,2]
[408270050,1773334239516,-1143.663702,9.452e-05,2]
[408270051,1773334239526,-1113.76287794,9.461e-05,2]
[408270052,1773334239536,-177.0,9.495e-05,2]
[408270053,1773334239547,-2307.44649377,9.547e-05,2]
[408270054,1773334239559,-219.185,9.573e-05,2]
[408270055,1773334239568,-1849.67512203,9.604e-05,2]
[408270056,1773334239577,-151.0,9.701e-05,2]
[408270057,1773334239597,-537243.79098048,9.701e-05,2]
[408270058,1773334239610,-45551.42,9.701e-05,2]
[408270107,1773334240765,-28.4994098,9.701e-05,2]
[408270360,1773334243200,-5922.19864215,9.701e-05,2]
[408270362,1773334243215,-1230.0,9.701e-05,2]
[408270363,1773334243327,-794.39502164,9.701e-05,2]
[408270698,1773334246501,-2510.37450185,9.604e-05,2]
[408270700,1773334246514,-10114.79173764,9.701e-05,2]
[408270734,1773334246832,-451.54608827,9.701e-05,2]
[408270966,1773334863483,-417.60161804,6.62e-05,2]
[408270967,1773334863570,-3881.32426516,6.62e-05,2]
[408270968,1773334892777,-417.60161804,6.62e-05,2]
[408270980,1773335353123,-1252.91875572,6.295e-05,2]
[408270981,1773335353146,-5000.0,6.359e-05,2]
[408270982,1773335353169,-150.0,6.521e-05,2]
[408270983,1773335353189,-1200.0,6.686e-05,2]
[408270984,1773335353210,-300.0,6.686e-05,2]
[408270985,1773335353229,-3411.1325955,6.687e-05,2]
[408270986,1773335353250,-515.0,6.687e-05,2]
[408270987,1773335353274,-300.0,6.82e-05,2]
[408270988,1773335353295,-300.0,6.82e-05,2]
[408270989,1773335353315,-300.0,6.82e-05,2]
[408270990,1773335353335,-300.0,6.82e-05,2]
[408270991,1773335353355,-300.0,6.82e-05,2]
[408270992,1773335353377,-300.0,6.82e-05,2]
[408270993,1773335353398,-300.0,6.82e-05,2]
[408270994,1773335353418,-300.0,6.82e-05,2]
[408270995,1773335353438,-300.0,6.82e-05,2]
[408270996,1773335353458,-300.0,6.82e-05,2]
[408270997,1773335353478,-300.0,6.82e-05,2]
[408270998,1773335353500,-300.0,6.82e-05,2]
[408270999,1773335353521,-300.0,6.82e-05,2]
[408271000,1773335353543,-300.0,6.82e-05,2]
[408271001,1773335353565,-300.0,6.82e-05,2]
[408271002,1773335353585,-500.0,6.82e-05,2]
[408271003,1773335353604,-500.0,6.82e-05,2]
[408271004,1773335353623,-212.1970564,6.82e-05,2]
[408271005,1773335353643,-500.0,6.82e-05,2]
[408271006,1773335353661,-500.0,6.82e-05,2]
[408271007,1773335353680,-408.57543544,6.82e-05,2]
[408271008,1773335353702,-500.0,6.82e-05,2]
[408271009,1773335353723,-500.0,6.82e-05,2]
[408271010,1773335353746,-500.0,6.82e-05,2]
[408271011,1773335353767,-528.41098966,6.82e-05,2]
[408271012,1773335353789,-500.0,6.82e-05,2]
[408271013,1773335353810,-500.0,6.82e-05,2]
[408271014,1773335353833,-563.93591299,6.955e-05,2]
[408271052,1773335432128,-225.40664251,6.82e-05,2]
[408271054,1773335432139,-36.06408701,6.955e-05,2]
[408271056,1773335432149,-133.00677626,6.955e-05,2]
[408271058,1773335432160,-385.99322374,6.955e-05,2]
[408271060,1773335432170,-150.0,7.161e-05,2]
[408271062,1773335432179,-139.43042338,7.368e-05,2]
[408271070,1773335432245,-360.56957662,7.368e-05,2]
[408271071,1773335432257,-587.76987372,7.651e-05,2]
[408271074,1773335432268,-132.23012628,7.651e-05,2]
[408271076,1773335432277,-250.0,7.85e-05,2]
[408271078,1773335432286,-28.48324917,8.416e-05,2]
[408271141,1773335438286,-835.51675083,8.416e-05,2]
[408271142,1773335438296,-164.48324917,8.871e-05,2]
[408271143,1773335438340,-755.74192965,8.871e-05,2]
[408271186,1773335440856,-100.20782118,8.871e-05,2]
[408271188,1773335440866,-639.0,8.871e-05,2]
[408271190,1773335440877,-113.84608269,9.047e-05,2]
[408271192,1773335440888,-186.15391731,9.047e-05,2]
[408271194,1773335440897,-300.0,9.047e-05,2]
[408271196,1773335440906,-300.0,9.047e-05,2]
[408271197,1773335440915,-147.74433548,9.047e-05,2]
[408271200,1773335440926,-152.25566452,9.047e-05,2]
[408271202,1773335440935,-300.0,9.047e-05,2]
[408271204,1773335440944,-300.0,9.047e-05,2]